bitfinex/quotes_BTCUSD_20250115
["timestamp","ask_amount","ask_price","bid_price","bid_amount"]
[1736924646095,0.0208083,97289.0,97288.0,0.30932]
[1736924646301,0.00469199,97289.0,97288.0,0.30932]
[1736924649387,0.00469199,97289.0,97288.0,0.30832]
[1736924649590,0.00469199,97289.0,97288.0,0.30932]
[1736924650149,0.00369199,97289.0,97288.0,0.30932]
[1736924650355,0.00469199,97289.0,97288.0,0.30932]
[1736924650536,0.02080817,97289.0,97288.0,0.30932]
[1736924651152,0.00469199,97289.0,97288.0,0.30932]
[1736924652350,0.0018537,97289.0,97288.0,0.30832]
[1736924652732,0.0018537,97289.0,97288.0,0.30932]
[1736924652935,0.0018537,97289.0,97288.0,0.31111256]
[1736924653647,0.0008537,97289.0,97288.0,0.31111256]
[1736924653942,0.0018537,97289.0,97288.0,0.31111256]
[1736924654148,0.0018537,97289.0,97288.0,0.41533948]
[1736924654611,0.0008537,97289.0,97288.0,0.64733948]
[1736924654783,0.0018537,97289.0,97288.0,0.64733948]
[1736924655190,0.0008537,97289.0,97288.0,0.64733948]
[1736924655397,0.0008537,97289.0,97288.0,0.64633948]
[1736924656090,0.01696829,97289.0,97288.0,0.64633948]
[1736924656290,0.01696829,97289.0,97288.0,0.65333948]
[1736924656650,0.01696829,97289.0,97288.0,0.64733948]
[1736924656865,0.01696829,97289.0,97288.0,0.65533948]
[1736924657066,0.01696829,97289.0,97288.0,0.65433948]
[1736924657491,0.01696829,97289.0,97288.0,0.65633948]
[1736924660222,0.0008537,97289.0,97288.0,0.65633948]
[1736924660877,0.0008537,97289.0,97288.0,0.67734688]
[1736924666389,0.0169679,97289.0,97288.0,0.67734688]
[1736924667544,0.0008537,97289.0,97288.0,0.67734688]
[1736924668358,0.0007537,97289.0,97288.0,0.67734688]
[1736924670818,0.01691828,97289.0,97288.0,0.67734688]
[1736924671198,0.00080451,97289.0,97288.0,0.67734688]
[1736924672836,0.00080451,97289.0,97288.0,0.67534688]
[1736924673040,0.00080451,97289.0,97288.0,0.67634688]
[1736924673257,0.00080451,97289.0,97288.0,0.66834688]
[1736924673443,0.00080451,97289.0,97288.0,0.67634688]
[1736924673645,0.00080451,97289.0,97288.0,0.65533948]
[1736924673849,0.00080451,97289.0,97288.0,0.56433948]
[1736924674075,0.00080451,97289.0,97288.0,0.57133948]
[1736924674595,0.00080451,97289.0,97288.0,0.56533948]
[1736924674737,0.00080451,97289.0,97288.0,0.57233948]
[1736924675916,0.00080451,97289.0,97288.0,0.57133948]
[1736924676154,0.01691889,97289.0,97288.0,0.57133948]
[1736924676334,0.00080451,97289.0,97288.0,0.46811256]
[1736924676624,0.00080451,97289.0,97288.0,0.31811256]
[1736924676625,0.0036428,97289.0,97288.0,0.31811256]
[1736924677208,0.1342428,97289.0,97288.0,0.31811256]
[1736924677413,0.1342428,97289.0,97288.0,0.31711256]
[1736924677614,0.1342428,97289.0,97288.0,0.31011256]
[1736924678143,0.1342428,97289.0,97288.0,0.31311256]
[1736924678342,0.1342428,97289.0,97288.0,0.31011256]
[1736924678569,0.1572428,97289.0,97288.0,0.31011256]
[1736924678848,0.26146972,97289.0,97288.0,0.31011256]
[1736924679285,0.26246972,97289.0,97288.0,0.31011256]
[1736924679972,0.26146972,97289.0,97288.0,0.31011256]
[1736924680182,0.26346972,97289.0,97288.0,0.31211256]
[1736924680387,0.60478998,97289.0,97288.0,0.31211256]
[1736924680595,0.60478998,97289.0,97288.0,0.31011256]
[1736924680817,0.60678998,97289.0,97288.0,0.31011256]
[1736924681247,0.93658998,97289.0,97288.0,0.31011256]
[1736924682897,1.03458998,97289.0,97288.0,0.31011256]
[1736924684456,1.22439535,97289.0,97288.0,0.31111256]
[1736924684940,1.03958998,97289.0,97288.0,0.31111256]
[1736924685481,1.03558998,97289.0,97288.0,0.31111256]
[1736924686289,0.71438741,97289.0,97288.0,0.31111256]
[1736924687714,0.85287538,97289.0,97288.0,0.31111256]
[1736924689080,0.61438741,97289.0,97288.0,0.31085177]
[1736924690519,0.70667747,97289.0,97288.0,0.31085177]
[1736924692123,0.70667747,97289.0,97288.0,0.31081177]
[1736924692985,0.59826972,97289.0,97288.0,0.31081177]
[1736924696397,0.61438737,97289.0,97288.0,0.31081177]
[1736924697330,0.3634428,97289.0,97288.0,0.31081177]
[1736924698486,0.3564428,97289.0,97288.0,0.30981177]
[1736924698885,0.3594428,97289.0,97288.0,0.31081177]
[1736924699256,0.3634428,97289.0,97288.0,0.31081177]
[1736924700715,0.37656016,97289.0,97288.0,0.30981177]
[1736924700910,0.37956016,97289.0,97288.0,0.30981177]
[1736924701109,0.3634428,97289.0,97288.0,0.30981177]
[1736924701314,0.3564428,97289.0,97288.0,0.30981177]
[1736924701532,0.3594428,97289.0,97288.0,0.31081177]
[1736924701730,0.3624428,97289.0,97288.0,0.31081177]
[1736924701938,0.3624428,97289.0,97288.0,0.30981177]
[1736924701939,0.3594428,97289.0,97288.0,0.30981177]
[1736924702411,0.3624428,97289.0,97288.0,0.30981177]
[1736924703257,0.3394428,97289.0,97288.0,0.30981177]
[1736924704162,0.3364428,97289.0,97288.0,0.30981177]
[1736924704365,0.3394428,97289.0,97288.0,0.30981177]
[1736924704538,0.3364428,97289.0,97288.0,0.30981177]
[1736924704914,0.3354428,97289.0,97288.0,0.30981177]
[1736924705273,0.0086428,97289.0,97288.0,0.30981177]
[1736924705630,0.0056428,97289.0,97288.0,0.30981177]
[1736924706062,0.02375978,97289.0,97288.0,0.30981177]
[1736924706821,0.02092149,97289.0,97288.0,0.30981177]
[1736924707027,0.02375978,97289.0,97288.0,0.30981177]
[1736924707453,0.0076428,97289.0,97288.0,0.30981177]
[1736924709133,0.0076428,97289.0,97288.0,0.38521177]
[1736924709694,0.0056428,97289.0,97288.0,0.38521177]
[1736924710031,0.0076428,97289.0,97288.0,0.38521177]
[1736924710459,0.0056428,97289.0,97288.0,0.38521177]
[1736924710801,0.0076428,97289.0,97288.0,0.38521177]
[1736924711191,0.0056428,97289.0,97288.0,0.38521177]
[1736924711521,0.0076428,97289.0,97288.0,0.38521177]
[1736924711729,0.0056428,97289.0,97288.0,0.38521177]
[1736924711992,0.00451909,97289.0,97288.0,0.38521177]
[1736924712191,0.0016808,97289.0,97288.0,0.43341177]
[1736924712396,0.0016808,97289.0,97288.0,0.63898677]
[1736924712607,0.0016808,97289.0,97288.0,0.74321369]
[1736924712935,0.0036808,97289.0,97288.0,0.75336974]
[1736924713260,0.0036808,97289.0,97288.0,0.90336974]
[1736924713607,0.0026808,97289.0,97288.0,0.90336974]
[1736924713992,0.0036808,97289.0,97288.0,0.90336974]
[1736924714321,0.0006808,97289.0,97288.0,0.90336974]
[1736924714469,0.0006808,97289.0,97288.0,0.90936974]
[1736924714654,0.0006808,97289.0,97288.0,0.91036974]
[1736924715054,0.0006808,97289.0,97288.0,0.90936974]
[1736924715257,0.0006808,97289.0,97288.0,0.90336974]
[1736924715469,0.01679507,97289.0,97288.0,0.90336974]
[1736924715672,0.0006808,97289.0,97288.0,0.90836974]
[1736924720264,0.01679506,97289.0,97288.0,0.90836974]
[1736924722441,0.0006808,97289.0,97288.0,0.90836974]
[1736924724325,0.0006808,97289.0,97288.0,0.91400974]
[1736924727911,0.0008537,97292.0,97290.0,0.20557]
[1736924728236,0.0008537,97292.0,97290.0,0.61849692]
[1736924728956,0.0008537,97292.0,97291.0,0.0823]
[1736924729187,0.0008537,97292.0,97291.0,0.39099]
[1736924730882,0.0008537,97292.0,97291.0,0.39399]
[1736924731783,0.01696777,97292.0,97291.0,0.39099]
[1736924732235,0.0008537,97292.0,97291.0,0.39099]
[1736924733613,0.0008537,97292.0,97291.0,0.39399]
[1736924734019,0.0008537,97292.0,97291.0,0.39099]
[1736924734447,0.0008537,97292.0,97291.0,0.39599]
[1736924735588,0.01696787,97292.0,97291.0,0.39599]
[1736924735885,0.0008537,97292.0,97291.0,0.39599]
[1736924738793,0.01696793,97292.0,97291.0,0.39599]
[1736924743199,0.0008537,97292.0,97291.0,0.39599]
[1736924747607,0.01696819,97292.0,97291.0,0.39099]
[1736924748033,0.01696819,97292.0,97291.0,0.39399]
[1736924752053,0.0008537,97292.0,97291.0,0.39399]
[1736924752636,0.0008537,97292.0,97291.0,0.39395]
[1736924755337,0.0169683,97292.0,97291.0,0.39395]
[1736924755557,0.0008537,97292.0,97291.0,0.39395]
[1736924758727,0.01696828,97292.0,97291.0,0.39395]
[1736924763119,0.0008537,97292.0,97291.0,0.39395]
[1736924766363,0.01696832,97292.0,97291.0,0.39395]
[1736924768087,0.01696832,97292.0,97291.0,0.49817692]
[1736924768696,0.01696832,97292.0,97291.0,0.64817692]
[1736924769884,0.01696832,97292.0,97291.0,0.73996704]
[1736924770559,0.01696832,97292.0,97291.0,0.73696704]
[1736924770933,0.01696832,97292.0,97291.0,0.74596704]
[1736924771333,0.01696832,97292.0,97291.0,0.74796704]
[1736924771596,0.01696832,97292.0,97291.0,0.74976002]
[1736924772379,0.0008537,97292.0,97291.0,0.74976002]
[1736924772759,0.0008537,97292.0,97291.0,0.6579699]
[1736924775596,0.01696745,97292.0,97291.0,0.6579699]
[1736924775899,0.0008537,97292.0,97291.0,0.6579699]
[1736924779050,0.01696745,97292.0,97291.0,0.6579699]
[1736924780442,0.0008537,97292.0,97291.0,0.6579699]
[1736924783837,0.0008537,97292.0,97291.0,0.6636099]
[1736924791470,0.0008537,97292.0,97291.0,0.6579699]
[1736924791669,0.0008537,97292.0,97291.0,0.6636099]
[1736924792892,0.01696746,97292.0,97291.0,0.6636099]
[1736924793326,0.0008537,97292.0,97291.0,0.6636099]
[1736924796239,0.01696753,97292.0,97291.0,0.6636099]
[1736924797424,0.0008537,97292.0,97291.0,0.6636099]
[1736924800378,0.01696758,97292.0,97291.0,0.6636099]
[1736924805466,0.01696758,97292.0,97291.0,0.6579699]
[1736924805793,0.01696758,97292.0,97291.0,0.6636099]
[1736924807230,0.0008537,97292.0,97291.0,0.6636099]
[1736924811253,0.01696772,97292.0,97291.0,0.6636099]
[1736924812307,0.0008537,97292.0,97291.0,0.6636099]
[1736924813427,0.0008537,97292.0,97291.0,0.6635699]
[1736924817092,0.0008537,97292.0,97291.0,0.6579299]
[1736924817299,0.0008537,97292.0,97291.0,0.6635699]
[1736924819001,0.0008537,97292.0,97291.0,1.64953161]
[1736924819201,0.0008537,97292.0,97291.0,4.48763083]
[1736924819413,0.01696666,97292.0,97291.0,3.51952883]
[1736924819629,0.01696666,97292.0,97291.0,3.42521283]
[1736924819841,0.01696666,97292.0,97291.0,3.42321283]
[1736924820040,0.01696666,97292.0,97291.0,3.72169695]
[1736924820186,0.01696666,97292.0,97291.0,3.72369695]
[1736924820596,0.01696666,97292.0,97291.0,3.71805695]
[1736924820804,0.01696666,97292.0,97291.0,3.71469695]
[1736924820990,0.01696666,97292.0,97291.0,3.72369695]
[1736924821431,0.01696666,97292.0,97291.0,3.71469695]
[1736924821608,0.01696666,97292.0,97291.0,3.72369695]
[1736924822023,0.01696666,97292.0,97291.0,3.71269695]
[1736924822227,0.01696666,97292.0,97291.0,3.72169695]
[1736924822625,0.0008537,97292.0,97291.0,3.71569695]
[1736924823124,5.7e-05,97300.0,97299.0,0.90171271]
[1736924823328,0.00010643,97300.0,97299.0,4.11848185]
[1736924823746,0.00010643,97300.0,97299.0,5.61848185]
[1736924823907,4.3e-07,97300.0,97299.0,5.23481685]
[1736924824125,0.0008541,97316.0,97315.0,0.09716171]
[1736924824331,0.00090353,97316.0,97315.0,3.3859001]
[1736924824491,0.00090353,97316.0,97315.0,3.30989317]
[1736924824695,0.00090353,97316.0,97315.0,4.80989317]
[1736924825775,0.00090353,97316.0,97315.0,4.81789317]
[1736924826605,0.01700941,97316.0,97315.0,4.81789317]
[1736924826807,0.01700941,97316.0,97315.0,4.82189317]
[1736924827085,0.01700941,97316.0,97315.0,5.11237729]
[1736924827309,0.01700941,97316.0,97315.0,5.10837729]
[1736924827531,0.00090353,97316.0,97315.0,5.13828953]
[1736924827753,0.00090353,97316.0,97315.0,5.12928953]
[1736924827980,0.00090353,97316.0,97315.0,5.67388953]
[1736924828185,0.00090353,97316.0,97315.0,5.68288953]
[1736924828380,0.00090353,97316.0,97315.0,5.64203099]
[1736924828576,0.00090353,97316.0,97315.0,5.64603099]
[1736924828782,0.00090353,97316.0,97315.0,5.65503099]
[1736924829003,0.00090353,97316.0,97315.0,5.66513774]
[1736924829172,0.00090353,97316.0,97315.0,5.65613774]
[1736924829575,0.00090353,97316.0,97315.0,6.92907274]
[1736924829803,0.00090353,97316.0,97315.0,7.05814508]
[1736924830603,0.00090353,97316.0,97315.0,7.02521508]
[1736924831115,0.0145443,97343.0,97318.0,0.47046171]
[1736924831464,0.0145443,97343.0,97318.0,4.36990063]
[1736924831703,0.01650669,97319.0,97318.0,4.53141463]
[1736924831931,0.01650669,97319.0,97318.0,6.03141463]
[1736924832191,0.01650669,97319.0,97318.0,4.69554263]
[1736924832418,0.0004,97319.0,97318.0,4.68141763]
[1736924832936,0.0004,97319.0,97318.0,4.67741763]
[1736924833150,0.0004,97319.0,97318.0,3.18141763]
[1736924833599,0.0004,97319.0,97318.0,3.17741763]
[1736924834044,0.0004,97319.0,97318.0,3.50311763]
[1736924834271,0.0004,97319.0,97318.0,3.51211763]
[1736924834531,0.0004,97319.0,97318.0,3.50311763]
[1736924835008,0.0004,97319.0,97318.0,3.51611763]
[1736924835225,0.0004,97319.0,97318.0,3.50711763]
[1736924835470,0.0004,97319.0,97318.0,3.51611763]
[1736924835697,0.0004,97319.0,97318.0,3.50311763]
[1736924835917,0.0004,97319.0,97318.0,3.50711763]
[1736924836153,0.01650646,97319.0,97318.0,3.51611763]
[1736924836653,0.01650646,97319.0,97318.0,3.51211763]
[1736924836897,0.01650646,97319.0,97318.0,3.51611763]
[1736924837354,0.01650646,97319.0,97318.0,3.50711763]
[1736924837757,0.01650646,97319.0,97318.0,3.51611763]
[1736924838015,0.01650646,97319.0,97318.0,3.47388063]
[1736924838212,0.01650646,97319.0,97318.0,3.45888063]
[1736924838448,0.00560464,97319.0,97318.0,3.45388063]
[1736924838631,0.0145443,97343.0,97328.0,0.09716171]
[1736924838770,0.00092442,97337.0,97336.0,0.355473]
[1736924838971,0.00092442,97337.0,97336.0,0.76824992]
[1736924840114,0.00092442,97337.0,97336.0,0.77388992]
[1736924840592,0.00092442,97337.0,97336.0,0.76824992]
[1736924840796,0.08082442,97337.0,97336.0,0.30855]
[1736924840967,0.12986271,97337.0,97336.0,0.30855]
[1736924841600,0.12986271,97337.0,97336.0,0.31655]
[1736924842159,0.12986271,97337.0,97336.0,0.30955]
[1736924842390,0.18652373,97337.0,97336.0,0.08065]
[1736924842630,0.46078963,97337.0,97336.0,0.06475]
[1736924842872,0.47790018,97337.0,97336.0,0.06475]
[1736924843107,0.00283829,97317.0,97316.0,0.00179256]
[1736924844576,0.00483829,97317.0,97316.0,0.00179256]
[1736924845023,0.00283829,97317.0,97316.0,0.00179256]
[1736924845230,0.00483829,97317.0,97316.0,0.00179256]
[1736924845429,0.00283829,97317.0,97316.0,0.00179256]
[1736924845638,0.00483829,97317.0,97316.0,0.00179256]
[1736924846636,0.00283829,97317.0,97316.0,0.00179256]
[1736924846961,0.00483829,97317.0,97316.0,0.00179256]
[1736924847575,0.00783829,97317.0,97316.0,0.00179256]
[1736924847792,0.00483829,97317.0,97316.0,0.00179256]
[1736924848213,0.00783829,97317.0,97316.0,0.00179256]
[1736924848426,0.00483829,97317.0,97316.0,0.00179256]
[1736924848622,0.00583829,97317.0,97316.0,0.00179256]
[1736924848822,0.00783829,97317.0,97316.0,0.00179256]
[1736924849537,0.00583829,97317.0,97316.0,0.00179256]
[1736924849749,0.00783829,97317.0,97316.0,0.00179256]
[1736924854027,0.00771462,97317.0,97316.0,0.00179256]
[1736924855960,0.02382693,97317.0,97316.0,0.00179256]
[1736924857393,0.00771462,97317.0,97316.0,0.00179256]
[1736924860878,0.02382726,97317.0,97316.0,0.00179256]
[1736924861316,0.21619175,97317.0,97316.0,0.00179256]
[1736924861550,0.64599175,97317.0,97316.0,0.00179256]
[1736924862177,0.74599175,97317.0,97316.0,0.00179256]
[1736924862365,0.74399175,97317.0,97316.0,0.00179256]
[1736924862742,0.74599175,97317.0,97316.0,0.00179256]
[1736924862951,0.74599175,97317.0,97316.0,5.6e-07]
[1736924863877,0.76666926,97317.0,97316.0,5.6e-07]
[1736924864107,0.89976429,97317.0,97316.0,5.6e-07]
[1736924864322,0.00271462,97292.0,97289.0,0.00307218]
[1736924864525,0.23128062,97292.0,97289.0,0.00307218]
[1736924865029,0.24739679,97292.0,97289.0,0.00307218]
[1736924865716,0.25039679,97292.0,97291.0,0.00184241]
[1736924866296,0.25339679,97292.0,97291.0,0.00184241]
[1736924868324,0.23728062,97292.0,97291.0,0.00184241]
[1736924869316,0.34150754,97292.0,97291.0,0.00184241]
[1736924869860,0.33850754,97292.0,97291.0,0.00184241]
[1736924870064,0.40394351,97292.0,97291.0,0.00184241]
[1736924870674,0.40094351,97292.0,97291.0,0.00184241]
[1736924871260,0.40594351,97292.0,97291.0,0.00184241]
[1736924871627,0.40894351,97292.0,97291.0,0.00184241]
[1736924871832,0.42506013,97292.0,97291.0,0.00184241]
[1736924872055,0.41706013,97292.0,97291.0,0.00184241]
[1736924872401,0.42506013,97292.0,97291.0,0.00184241]
[1736924872793,0.35962416,97292.0,97291.0,0.00184241]
[1736924872999,0.68942416,97292.0,97291.0,0.00184241]
[1736924873986,0.68942416,97292.0,97291.0,0.00180241]
[1736924875294,0.58519724,97292.0,97291.0,0.00180241]
[1736924876717,0.56908062,97292.0,97291.0,0.00180241]
[1736924879344,0.54608062,97292.0,97291.0,0.00180241]
[1736924879933,0.56219723,97292.0,97291.0,0.00180241]
[1736924880282,0.35663123,97292.0,97291.0,0.00180241]
[1736924880630,0.35663123,97292.0,97291.0,0.07980241]
[1736924881268,0.35163123,97292.0,97291.0,0.07980241]
[1736924881473,0.34863123,97292.0,97291.0,0.07980241]
[1736924881680,0.35563123,97292.0,97291.0,0.07980241]
[1736924882113,0.35263123,97292.0,97291.0,0.07980241]
[1736924882494,0.34963123,97292.0,97291.0,0.07980241]
[1736924883380,0.33351462,97292.0,97291.0,0.07980241]
[1736924883935,0.33851462,97292.0,97291.0,0.07980241]
[1736924884519,0.33751462,97292.0,97291.0,0.07980241]
[1736924884920,0.00771462,97292.0,97291.0,0.07980241]
[1736924885141,0.00871462,97292.0,97291.0,0.07980241]
[1736924885504,0.00771462,97292.0,97291.0,0.07980241]
[1736924885905,0.00871462,97292.0,97291.0,0.07980241]
[1736924886368,0.00771462,97292.0,97291.0,0.07980241]
[1736924887127,0.00771462,97292.0,97291.0,0.00180241]
[1736924887333,0.03071462,97292.0,97291.0,0.00180241]
[1736924887529,0.13494154,97292.0,97291.0,0.00180241]
[1736924888361,0.13594154,97292.0,97291.0,0.00180241]
[1736924888802,0.13494154,97292.0,97291.0,0.00180241]
[1736924889131,0.14094154,97292.0,97291.0,0.00180241]
[1736924890450,0.13794154,97292.0,97291.0,0.00180241]
[1736924890621,0.15405878,97292.0,97291.0,0.00180241]
[1736924891078,0.15105878,97292.0,97291.0,0.00180241]
[1736924891448,0.15691258,97292.0,97291.0,0.00180241]
[1736924891690,0.15991258,97292.0,97291.0,0.00180241]
[1736924891854,0.2591395,97292.0,97291.0,0.00180241]
[1736924892244,0.2561395,97292.0,97291.0,0.00180241]
[1736924892459,0.2641395,97292.0,97291.0,0.00180241]
[1736924892663,0.3560324,97292.0,97291.0,0.00180241]
[1736924894201,0.24680548,97292.0,97291.0,0.00180241]
[1736924894591,0.24880548,97292.0,97291.0,0.00180241]
[1736924894988,0.25180548,97292.0,97291.0,0.00180241]
[1736924895993,0.14757856,97292.0,97291.0,0.08350241]
[1736924896165,0.12457856,97292.0,97291.0,0.08350241]
[1736924896576,0.12186394,97292.0,97291.0,0.08350241]
[1736924896753,0.12457856,97292.0,97291.0,0.13330241]
[1736924896956,0.10846132,97292.0,97291.0,0.13330241]
[1736924897792,0.10346132,97292.0,97291.0,0.13330241]
[1736924897996,0.01156842,97292.0,97291.0,0.13330241]
[1736924898204,0.01356842,97292.0,97291.0,0.13330241]
[1736924898437,0.00856842,97292.0,97291.0,0.13330241]
[1736924898581,0.01156842,97292.0,97291.0,0.13330241]
[1736924898941,0.01456842,97292.0,97291.0,0.13330241]
[1736924899138,0.00856842,97292.0,97291.0,0.13330241]
[1736924899553,0.01056842,97292.0,97291.0,0.13330241]
[1736924900582,0.01156842,97292.0,97291.0,0.13330241]
[1736924901181,0.02668394,97292.0,97291.0,0.13330241]
[1736924901720,0.02568394,97292.0,97291.0,0.13330241]
[1736924901927,0.02668394,97292.0,97291.0,0.13330241]
[1736924902806,0.02568394,97292.0,97291.0,0.13330241]
[1736924903213,0.02668394,97292.0,97291.0,0.13330241]
[1736924903420,0.02568394,97292.0,97291.0,0.13330241]
[1736924905342,0.02468394,97292.0,97291.0,0.13330241]
[1736924905684,0.02568394,97292.0,97291.0,0.13430241]
[1736924906051,0.02468394,97292.0,97291.0,0.13430241]
[1736924906459,0.02568394,97292.0,97291.0,0.13430241]
[1736924906679,0.02296932,97292.0,97291.0,0.13430241]
[1736924906889,0.02568394,97292.0,97291.0,0.13330241]
[1736924907309,0.02568394,97292.0,97291.0,0.13430241]
[1736924908397,0.02468394,97292.0,97291.0,0.13430241]
[1736924908596,0.02468394,97292.0,97291.0,0.13330241]
[1736924908800,0.02468394,97292.0,97291.0,0.13530241]
[1736924909379,0.00856842,97292.0,97291.0,0.13530241]
[1736924910582,0.00856842,97292.0,97291.0,0.13330241]
[1736924910953,0.00856842,97292.0,97291.0,0.13530241]
[1736924911757,0.00956842,97292.0,97291.0,0.13530241]
[1736924912299,0.00856842,97292.0,97291.0,0.13530241]
[1736924912508,0.02468407,97292.0,97291.0,0.13530241]
[1736924913095,0.02196945,97292.0,97291.0,0.13530241]
[1736924913355,0.02468407,97292.0,97291.0,0.13530241]
[1736924914113,0.02196945,97292.0,97291.0,0.13530241]
[1736924914365,0.02196945,97292.0,97291.0,0.13330241]
[1736924914718,0.02196945,97292.0,97291.0,0.13530241]
[1736924914927,0.02196945,97292.0,97291.0,0.13330241]
[1736924915122,0.0058538,97292.0,97291.0,0.13330241]
[1736924915351,0.0058538,97292.0,97291.0,0.13530241]
[1736924915911,0.0058538,97292.0,97291.0,0.13630241]
[1736924917151,0.0058538,97292.0,97291.0,0.13430241]
[1736924917675,0.0058538,97292.0,97291.0,0.13930241]
[1736924917849,0.0058538,97292.0,97291.0,0.24352933]
[1736924918071,0.0058538,97292.0,97291.0,0.39352933]
[1736924919084,0.0058538,97292.0,97291.0,0.40377415]
[1736924919516,0.02196757,97292.0,97291.0,0.40377415]
[1736924926142,0.02196757,97292.0,97291.0,0.40945415]
[1736924927606,0.02159422,97292.0,97291.0,0.40945415]
[1736924931723,0.00548045,97292.0,97291.0,0.40945415]
[1736924934730,0.00548045,97292.0,97291.0,0.40941415]
[1736924936220,0.02159451,97292.0,97291.0,0.40941415]
[1736924936431,0.00548045,97292.0,97291.0,0.40941415]
[1736924937608,0.00548045,97292.0,97291.0,0.40373415]
[1736924938935,0.00542843,97292.0,97291.0,0.40373415]
[1736924939712,0.00542843,97292.0,97291.0,0.29950723]
[1736924940703,0.02154335,97292.0,97291.0,0.29950723]
[1736924942656,0.02154335,97292.0,97291.0,0.40373415]
[1736924946006,0.00542843,97292.0,97291.0,0.40373415]
[1736924947389,0.00542843,97292.0,97291.0,0.40357913]
[1736924949626,0.00542843,97292.0,97291.0,0.40925913]
[1736924950434,0.0215428,97292.0,97291.0,0.40925913]
[1736924953549,0.00542843,97292.0,97291.0,0.40925913]
[1736924958079,0.02154285,97292.0,97291.0,0.40925913]
[1736924958282,0.00542843,97292.0,97291.0,0.40925913]
[1736924962138,0.0215426,97292.0,97291.0,0.40925913]
[1736924963317,0.00542843,97292.0,97291.0,0.40925913]
[1736924965443,0.00542843,97292.0,97291.0,0.71760913]
[1736924966016,0.00542843,97292.0,97291.0,0.74960118]
[1736924967056,0.00542843,97292.0,97291.0,1.04794765]
[1736924970916,0.02154222,97292.0,97291.0,1.04794765]
[1736924972112,0.02154222,97292.0,97291.0,1.0159556]
[1736924972490,0.02154222,97292.0,97291.0,1.1541373]
[1736924976086,0.02154222,97292.0,97291.0,1.18612108]
[1736924977504,0.02154222,97292.0,97291.0,0.88777461]
[1736924978182,0.00542843,97292.0,97291.0,0.91077461]
[1736924980432,0.00542843,97292.0,97291.0,0.77259291]
[1736924986971,0.02154193,97292.0,97291.0,0.77259291]
[1736924987189,0.00542843,97292.0,97291.0,0.77259291]
[1736924988708,0.00542843,97292.0,97291.0,0.91077461]
[1736924990721,0.00542843,97292.0,97291.0,1.20911301]
[1736924991333,0.00542843,97292.0,97291.0,1.20411301]
[1736924991538,0.00542843,97292.0,97291.0,1.20311301]
[1736924991739,0.02154171,97292.0,97291.0,1.20311301]
[1736924991939,0.02154171,97292.0,97291.0,1.06593131]
[1736924992325,0.02154171,97292.0,97291.0,1.06493131]
[1736924992730,0.02154171,97292.0,97291.0,1.07693131]
[1736924993753,0.00542843,97292.0,97291.0,1.07693131]
[1736924995398,0.00542843,97292.0,97291.0,1.07689131]
[1736924996969,0.00530472,97292.0,97291.0,1.07689131]
[1736925001229,0.02141788,97292.0,97291.0,1.07689131]
[1736925001434,0.01719147,97292.0,97291.0,1.40259131]
[1736925001670,0.0008536,97316.0,97315.0,0.502218]
[1736925001869,0.0008536,97316.0,97315.0,0.61208492]
[1736925002018,0.0008536,97316.0,97315.0,0.95233754]
[1736925002217,0.0008536,97316.0,97315.0,1.0176503]
[1736925002415,6e-07,97316.0,97315.0,2.80643472]
[1736925002656,6e-07,97316.0,97315.0,1.14958172]
[1736925002858,6e-07,97316.0,97315.0,2.65158172]
[1736925003063,6e-07,97316.0,97315.0,2.64958172]
[1736925003445,6e-07,97316.0,97315.0,3.18553044]
[1736925003644,6e-07,97316.0,97315.0,3.1973161]
[1736925004106,6e-07,97316.0,97315.0,3.2063161]
[1736925004287,6e-07,97316.0,97315.0,3.1973161]
[1736925004664,6e-07,97316.0,97315.0,2.97170578]
[1736925005238,6e-07,97316.0,97315.0,2.96870578]
[1736925005746,6e-07,97316.0,97315.0,2.98349834]
[1736925006034,6e-07,97316.0,97315.0,2.97449834]
[1736925006237,6e-07,97316.0,97315.0,2.98349834]
[1736925006438,6e-07,97316.0,97315.0,2.99387812]
[1736925006967,6e-07,97316.0,97315.0,1.49387812]
[1736925007647,6e-07,97316.0,97315.0,1.81957812]
[1736925009174,6e-07,97316.0,97315.0,1.7876467]
[1736925010859,6e-07,97316.0,97315.0,1.4893083]
[1736925014012,6e-07,97316.0,97315.0,1.58092204]
[1736925015521,6e-07,97316.0,97315.0,2.78638292]
[1736925015720,6e-07,97316.0,97315.0,1.3836683]
[1736925015920,6e-07,97316.0,97315.0,1.29202292]
[1736925016121,6e-07,97316.0,97315.0,1.26338292]
[1736925016339,6e-07,97316.0,97315.0,1.26902292]
[1736925016546,6e-07,97316.0,97315.0,1.26002292]
[1736925016752,6e-07,97316.0,97315.0,0.96553726]
[1736925016952,6e-07,97316.0,97315.0,0.95851748]
[1736925017157,6e-07,97316.0,97315.0,0.52859056]
[1736925017347,0.00271522,97316.0,97315.0,0.32307256]
[1736925017675,0.00271522,97316.0,97315.0,0.31907256]
[1736925017873,0.00271522,97316.0,97315.0,0.32307256]
[1736925018393,0.00271522,97316.0,97315.0,0.31007256]
[1736925019609,0.00271522,97316.0,97315.0,0.31807256]
[1736925019934,0.00271522,97316.0,97315.0,0.31007256]
[1736925020143,0.00271522,97316.0,97315.0,0.31407256]
[1736925022946,0.00271522,97316.0,97315.0,0.31007256]
[1736925023310,0.00371522,97316.0,97315.0,0.31007256]
[1736925023556,0.00271522,97316.0,97315.0,0.31007256]
[1736925023728,0.00371522,97316.0,97315.0,0.31007256]
[1736925024219,0.00571522,97316.0,97315.0,0.31007256]
[1736925024421,0.00371522,97316.0,97315.0,0.31007256]
[1736925024862,0.00571522,97316.0,97315.0,0.31007256]
[1736925027712,0.00471522,97316.0,97315.0,0.31007256]
[1736925027883,0.00571522,97316.0,97315.0,0.31007256]
[1736925028880,0.00371522,97316.0,97315.0,0.31007256]
[1736925029085,0.00271522,97316.0,97315.0,0.31007256]
[1736925029522,0.00271522,97316.0,97315.0,0.31107256]
[1736925029909,0.00271522,97316.0,97315.0,0.31007256]
[1736925030120,0.00371522,97316.0,97315.0,0.31007256]
[1736925030889,0.00271522,97316.0,97315.0,0.31007256]
[1736925031096,0.00471522,97316.0,97315.0,0.31007256]
[1736925031496,0.00271522,97316.0,97315.0,0.31007256]
[1736925031818,0.00471522,97316.0,97315.0,0.31007256]
[1736925032226,0.00571522,97316.0,97315.0,0.31007256]
[1736925032626,0.00471522,97316.0,97315.0,0.31007256]
[1736925032812,0.00571522,97316.0,97315.0,0.31007256]
[1736925033209,0.00471522,97316.0,97315.0,0.31007256]
[1736925033653,0.00571522,97316.0,97315.0,0.31007256]
[1736925033988,0.00471522,97316.0,97315.0,0.31007256]
[1736925034166,0.00371522,97316.0,97315.0,0.31007256]
[1736925034521,0.00571522,97316.0,97315.0,0.31007256]
[1736925035167,0.00371522,97316.0,97315.0,0.31007256]
[1736925035375,0.00571522,97316.0,97315.0,0.31007256]
[1736925035578,0.00471522,97316.0,97315.0,0.31007256]
[1736925035760,0.00571522,97316.0,97315.0,0.31007256]
[1736925035963,0.00371522,97316.0,97315.0,0.31007256]
[1736925036351,0.00571522,97316.0,97315.0,0.31007256]
[1736925036558,0.00471522,97316.0,97315.0,0.31007256]